Cogmind - Beta 13 @@@ ROGUE MODE // 2024.04.02 @ 18:17:38 Player: Some Pennies Result: Destroyed by G-47 Trooper with Particle Gun Performance ------------- Evolutions (3) 1500 Regions Visited (4) 800 Robots Destroyed (104) 520 Value Destroyed (2586) 2586 Prototype IDs (10) 200 Alien Tech Used (0) 0 Bonus (182) 182 TOTAL SCORE: 5788 Bonus ------- High Alert Combat Kills 182 Cogmind --------- Core Integrity 0/700 Matter 24/300 Energy 56/100 System Corruption 0% Temperature Cool (9) Movement Core (750) Ox14 Location -7/Factory Parts ------- > --- POWER (1) -------- (None) > --- PROPULSION (4) --- (None) > --- UTILITY (6) ------ High-capacity Storage Unit Machine Analyzer Core Analyzer Transmission Jammer Improved Utility Shielding > --- WEAPON (2) ------- (None) > --- INVENTORY (20) --- Nuclear Core Nuclear Core Improved Carbon-fiber Leg Improved VTOL Module High-capacity Storage Unit Improved Sensor Array Particle Charger Weapon Cycler Improved Power Shielding Improved Light Armor Plating Shield Generator Dynamic Insulation System Arc Projector High-powered Shotgun Gauss Cannon Gauss Cannon Improved Datajack Peak State ------------ > --- POWER ------------ Nuclear Core > --- PROPULSION ------- Carbon-fiber Leg VSS Leg Improved Carbon-fiber Leg Improved Carbon-fiber Leg > --- UTILITY ---------- High-capacity Storage Unit Machine Analyzer Core Analyzer Transmission Jammer Improved Utility Shielding Hacking Suite > --- WEAPON ----------- Gauss Cannon Gauss Cannon > --- INVENTORY -------- Nuclear Core Nuclear Core Improved Carbon-fiber Leg Improved VTOL Module High-capacity Storage Unit Improved Sensor Array Particle Charger Kinecellerator Weapon Cycler Improved Power Shielding Medium Armor Plating Improved Light Armor Plating Shield Generator Dynamic Insulation System Arc Projector High-powered Shotgun Gauss Cannon Gauss Cannon Improved Datajack [Rating: 49] Favorites ----------- Power Nuclear Core Engine Light Ion Engine Power Core Nuclear Core Propulsion Improved Treads Treads Improved Treads Leg Improved Carbon-fiber Leg Hover Unit Aerolev Unit Flight Unit Improved Flight Unit Utility High-capacity Storage Unit Device Shield Generator Storage High-capacity Storage Unit Processor Machine Analyzer Hackware Hacking Suite Protection Medium Armor Plating Weapon High-powered Shotgun Energy Gun Particle Gun Ballistic Gun High-powered Shotgun Ballistic Cannon Improved Light Cannon Launcher Improved Grenade Launcher Build | -11 -10 -9 -8 -7 ------- Run | Yrd Mat Mat Mat Fac Slots Evolved 6 | . . 2 2 2 Power . | . . . . . Propulsion 2 | . . 1 . 1 Utility 4 | . . 1 2 1 Weapon . | . . . . . Parts Attached 75 | 7 14 19 26 9 Power 6 | 1 1 2 2 . Engine 3 | 1 1 1 . . Core 3 | . . 1 2 . Reactor . | . . . . . Propulsion 25 | 2 5 7 9 2 Treads 15 | 2 5 6 2 . Leg 7 | . . . 5 2 Wheel . | . . . . . Hover 1 | . . . 1 . Flight 2 | . . 1 1 . Utility 23 | 2 3 3 10 5 Device 5 | 1 1 1 . 2 Storage 5 | 1 1 1 1 1 Processor 7 | . 1 1 5 . Hackware 1 | . . . 1 . Protection 5 | . . . 3 2 Artifact . | . . . . . Weapon 21 | 2 5 7 5 2 Energy Gun 1 | . . 1 . . Energy Cannon . | . . . . . Ballistic Gun 13 | 2 3 4 4 . Ballistic Cannon 4 | . . 2 . 2 Launcher 3 | . 2 . 1 . Special Weapon . | . . . . . Impact Weapon . | . . . . . Slashing Weapon . | . . . . . Piercing Weapon . | . . . . . Special Melee Weapon . | . . . . . Unidentified Prototypes 4 | . . 2 2 . Parts Lost 7 | . . . 2 5 Power 1 | . . . 1 . Propulsion 3 | . . . . 3 Utility 1 | . . . . 1 Weapon 2 | . . . 1 1 Highest Loss Streak 4 | . . . 1 4 To Critical Strikes . | . . . . . Average Slot Usage (%) 98 | . 100 99 99 92 Engine 6 | . 14 9 . . Core 4 | . . 1 8 6 Treads 23 | . 28 32 18 . Leg 5 | . . . 8 24 Device 8 | . 8 11 7 6 Storage 9 | . 8 10 9 7 Processor 15 | . 10 11 21 15 Hackware 1 | . . . 1 6 Protection 2 | . . . 5 6 Ballistic Gun 16 | . 25 12 15 9 Ballistic Cannon 2 | . . 8 . 5 Launcher 1 | . 2 . 2 . Naked Turns . | . . . . . Heaviest Build 66 | 14 19 57 62 66 Greatest Support 69 | 40 46 69 69 66 Greatest Overweight (x) 18 | . . 2 1 18 Average Overweight (x) . | . . . . . Largest Inventory Capacity 20 | 8 10 20 20 20 Average Capacity 16 | 7 7 19 20 20 Most Carried 20 | 5 10 20 20 20 Average Carried 14 | 1 6 16 18 16 Final Capacity 20 | 8 5 20 20 20 Final Carried 20 | 5 5 18 20 17 Class Distribution -------------------- 85% | Mutant 14% | Scavenger-Mutant Dominant Class ---------------- Mutant | -10/Materials Mutant | -9/Materials Mutant | -8/Materials Mutant | -7/Factory Resources | -11 -10 -9 -8 -7 ----------- Run | Yrd Mat Mat Mat Fac Matter Collected 2261 | 330 242 802 779 108 Remotely . | . . . . . Salvage Created 3102 | 194 406 1019 1314 169 Parts 199 | 12 34 53 93 7 Haulers Intercepted 7 | . 2 2 2 1 Recyclers Shooed . | . . . . . Parts Field Recycled . | . . . . . Retrieved Matter . | . . . . . Parts Self-Destructed . | . . . . . Prevented . | . . . . . Kills | -11 -10 -9 -8 -7 ------- Run | Yrd Mat Mat Mat Fac Combat Hostiles Destroyed 68 | . 12 21 33 2 Guns 49 | . 8 12 27 2 Cannons 9 | . . 9 . . AOE 10 | . 4 . 6 . Classes Destroyed 12 | 3 5 1 3 . Worker 6 | 2 . 2 1 1 Builder 2 | . 1 . 1 . Tunneler 3 | 2 . 1 . . Hauler 7 | . 2 2 2 1 Recycler 6 | 1 1 2 2 . Operator 2 | . . . 2 . Watcher 10 | . 3 3 4 . Swarmer 23 | . 6 3 14 . Grunt 28 | . 6 13 9 . Sentry 14 | . . 5 7 2 Specialist 2 | . . . 2 . Heavy 1 | . . . 1 . Best Kill Streak 14 | 3 9 14 9 2 Combat Bots Only 7 | . 7 3 6 1 Max Kills in Single Turn 5 | 1 3 2 5 1 Gunslinging 1 | . . . 1 . Exploded 2 | . 2 . 2 . Melee . | . . . . . Uniques/NPCs Destroyed . | . . . . . Combat | -11 -10 -9 -8 -7 -------- Run | Yrd Mat Mat Mat Fac Hostile Shots Fired 496 | . 67 90 182 157 Missed 145 | . 18 27 61 39 Damage Taken 4531 | . 462 575 1733 1761 Core 1156 | . 83 60 301 712 Absorbed by Shields 649 | . 57 214 378 . Redirected to Shielding 89 | . . . . 89 Regen/Repaired (Parts) 246 | . . . 246 . Core Remaining (%) 74 | 100 66 85 45 . Volleys Fired 230 | 15 42 71 88 14 Largest 2 | 2 2 2 2 2 Hottest 96 | 40 50 62 61 96 Shots Fired 430 | 30 71 142 159 28 Gun 338 | 30 65 74 149 20 Cannon 76 | . . 68 . 8 Launcher 16 | . 6 . 10 . Special . | . . . . . Kinetic 414 | 30 65 142 149 28 Thermal . | . . . . . Explosive 16 | . 6 . 10 . Electromagnetic . | . . . . . Robot Hit Streak 27 | 4 12 27 19 6 Robot Miss Streak 11 | 2 4 6 11 9 Penetration Max . | . . . . . Secondary Targets 5 | . . . 5 . Max Gunslinging Chain 1 | . . . 1 . Shots Hit Robots 280 | 18 45 97 104 16 Core Hits 166 | 8 29 39 81 9 Critical Kills 1 | . . . 1 . Critical Parts Destroyed 1 | . . . 1 . Critical Strikes 2 | . . . 2 . Destroy 2 | . . . 2 . Melee Attacks . | . . . . . Impact . | . . . . . Slashing . | . . . . . Piercing . | . . . . . Sneak Attacks . | . . . . . Combat Hostiles . | . . . . . Follow-up Attacks . | . . . . . Damage Inflicted 5740 | 174 934 1820 2458 354 Guns 3695 | 174 445 889 1914 273 Cannons 1010 | . . 929 . 81 Explosions 1030 | . 486 . 544 . Melee . | . . . . . Ramming 5 | . 3 2 . . Kinetic 4705 | 174 445 1818 1914 354 Thermal . | . . . . . Explosive 1030 | . 486 . 544 . Electromagnetic . | . . . . . Impact . | . . . . . Slashing . | . . . . . Piercing . | . . . . . Highest Corruption 2 | . . 2 . . Average Corruption 1 | . . 1 . . Corruption Purged . | . . . . . Corruption Blocked . | . . . . . Effects 7 | . . 7 . . Message Errors 1 | . . 1 . . Matter Fused 1 | . . 1 . . Heat Flow Errors 2 | . . 2 . . Data Loss (minor) 2 | . . 2 . . Alerts 1 | . . 1 . . Overload Shots . | . . . . . Overflow Damage 98 | . . 33 65 . Projectiles 33 | . . 33 . . Explosions 65 | . . . 65 . Melee . | . . . . . Knockbacks 7 | . . 5 . 2 Impact . | . . . . . Kinetic 6 | . . 4 . 2 Secondary 1 | . . 1 . . Self-Inflicted Damage 73 | . . . 73 . Shots 2 | . . . 2 . Rammed 2 | . 1 1 . . Targets Rammed 2 | . 1 1 . . Kicked . | . . . . . Crushed . | . . . . . Highest Temperature 237 | . 28 237 24 105 Average Temperature 23 | . 8 32 5 36 Received Heat Transfer 1530 | . 190 281 414 645 Siege Activations . | . . . . . Robots Corrupted . | . . . . . Combat Hostiles . | . . . . . Parts Fried . | . . . . . Impact Corruptions . | . . . . . Robots Melted . | . . . . . Combat Hostiles . | . . . . . Parts Melted . | . . . . . Heat Transferred . | . . . . . Parts Sabotaged . | . . . . . Parts Stolen . | . . . . . Parts Stripped . | . . . . . Power Chain Reactions . | . . . . . Alert | -11 -10 -9 -8 -7 ------- Run | Yrd Mat Mat Mat Fac Peak Influence 940 | 25 253 345 940 523 Initial 411 | . 16 1 98 411 Average 231 | 8 88 173 338 459 Maximum Alert Level 3 | . 1 1 3 2 Low Security (%) 43 | 100 82 53 15 . Level 1 37 | . 17 46 55 . Level 2 15 | . . . 21 100 Level 3 2 | . . . 7 . Level 4 . | . . . . . Level 5 . | . . . . . High Security . | . . . . . Max Security . | . . . . . Squads Dispatched 14 | . 3 4 6 1 Investigation 7 | . 1 3 2 1 Extermination . | . . . . . Reinforcement 5 | . 2 1 2 . Assault . | . . . . . Garrison 2 | . . . 2 . Intercept . | . . . . . Searches Triggered . | . . . . . Construction Impeded . | . . . . . Haulers Reinforced . | . . . . . Active Scanning Responses . | . . . . . Cargo Convoy Interrupts . | . . . . . Stealth | -11 -10 -9 -8 -7 --------- Run | Yrd Mat Mat Mat Fac Distress Signals 6 | . 2 1 3 . Communications Jammed . | . . . . . Distress Signals . | . . . . . Times Spotted 99 | . 15 29 47 8 Peak Tracking Total 7 | . 5 6 7 6 Tactical Retreats 2 | . . . 1 1 Traps | -11 -10 -9 -8 -7 ------- Run | Yrd Mat Mat Mat Fac Traps Triggered 6 | . 1 5 . . Indirectly . | . . . . . Trap Hack Attempts . | . . . . . Triggered . | . . . . . Disarmed . | . . . . . Reprogrammed 6 | . . . 6 . Reused 3 | . . . 3 . Traps Extracted . | . . . . . Installed . | . . . . . Triggered 3 | . . . 3 . Machines | -11 -10 -9 -8 -7 ---------- Run | Yrd Mat Mat Mat Fac Machines Disabled 10 | . 3 2 4 1 Max in Single Turn 2 | . 2 1 1 1 Machines Repaired . | . . . . . Machines Dismantled . | . . . . . Machines Sabotaged . | . . . . . Overloaded Fab Kills . | . . . . . Hacking | -11 -10 -9 -8 -7 --------- Run | Yrd Mat Mat Mat Fac Machines Accessed 20 | . 6 6 7 1 Terminals 16 | . 6 5 4 1 Fabricators . | . . . . . Repair Stations 1 | . . . 1 . Recycling Units . | . . . . . Scanalyzers 3 | . . 1 2 . Garrison Access . | . . . . . Total Hacks 63 | . 10 18 29 6 Successful 38 | . 4 9 21 4 Failed 25 | . 6 9 8 2 Catastrophic 5 | . 2 2 1 . Database Lockouts . | . . . . . Manual 11 | . 2 7 2 . Terminals 45 | . 10 15 14 6 Fabricators . | . . . . . Repair Stations 7 | . . . 7 . Recycling Units . | . . . . . Scanalyzers 11 | . . 3 8 . Garrison Access . | . . . . . Terminal Hacks 24 | . 4 6 10 4 Record 3 | . . 1 2 . Robot Analysis 3 | . 1 1 . 1 Prototype ID Bank 3 | . 1 1 . 1 Emergency Access Points 3 | . . 1 1 1 Repair Station Index 1 | . . . . 1 Alert Level 1 | . . 1 . . Unreport Threat 1 | . 1 . . . Locate Traps 4 | . 1 . 3 . Reprogram Traps 1 | . . . 1 . Hauler Manifests 2 | . . 1 1 . Zone Layout 2 | . . . 2 . Fabricator Hacks . | . . . . . Repair Station Hacks 6 | . . . 6 . Scan Component 3 | . . . 3 . Repair 3 | . . . 3 . Recycling Unit Hacks . | . . . . . Scanalyzer 8 | . . 3 5 . Insert Component 4 | . . 1 3 . Analyze 4 | . . 2 2 . Garrison Access Hacks . | . . . . . Unauthorized Hacks . | . . . . . Terminals . | . . . . . Fabricators . | . . . . . Repair Stations . | . . . . . Recycling Units . | . . . . . Scanalyzers . | . . . . . Garrison Access . | . . . . . Data Cores Recovered 1 | . . . 1 . Used . | . . . . . Hacking Detections 18 | . 6 5 6 1 Full Trace Events 7 | . . 4 2 1 Feedback Events . | . . . . . Feedback Blocked . | . . . . . Robot Schematics Acquired . | . . . . . Robots Built . | . . . . . Authchips . | . . . . . Time . | . . . . . Total Robot Build Rating . | . . . . . Part Schematics Acquired 3 | . . 1 2 . Parts Built . | . . . . . Authchips . | . . . . . Time . | . . . . . Total Part Build Rating . | . . . . . Parts Repaired 3 | . . . 3 . Time 96 | . . . 96 . Parts Recycled . | . . . . . Recycled Matter . | . . . . . Retrieved Matter . | . . . . . Retrieved Components . | . . . . . Parts Scanalyzed 4 | . . 1 3 . Part Schematics Acquired 3 | . . 1 2 . Parts Damaged . | . . . . . Bothacking | -11 -10 -9 -8 -7 ------------ Run | Yrd Mat Mat Mat Fac Used RIF Installer . | . . . . . Robots Hacked . | . . . . . Non-combat . | . . . . . Combat . | . . . . . Robot Hacks Applied . | . . . . . Relay Couplers Released . | . . . . . Fabnet Peak Effective % . | . . . . . Robots Rewired . | . . . . . Allies Hacked . | . . . . . Hacks Repelled . | . . . . . Allies | -11 -10 -9 -8 -7 -------- Run | Yrd Mat Mat Mat Fac Total Allies . | . . . . . Largest Group . | . . . . . Highest-Rated Group . | . . . . . Highest-Rated Ally . | . . . . . Total Orders . | . . . . . Ally Attacks . | . . . . . Total Damage . | . . . . . Kills . | . . . . . Allies Corrupted . | . . . . . Allies Melted . | . . . . . Intel | -11 -10 -9 -8 -7 ------- Run | Yrd Mat Mat Mat Fac Robot Analysis Total 3 | . 1 1 . 1 Derelict Logs Recovered . | . . . . . Drone Launches . | . . . . . Drone Recoveries . | . . . . . Exploration | -11 -10 -9 -8 -7 ------------- Run | Yrd Mat Mat Mat Fac Turns Passed 4398 | 215 931 1271 1637 344 Spaces Moved 2166 | 96 491 617 790 172 Core 8 | 5 . . . 3 Treads 1718 | 91 491 617 519 . Legs 440 | . . . 271 169 Wheels . | . . . . . Hover . | . . . . . Flight . | . . . . . Fastest Speed 50 | 50 160 160 120 112 Average Speed 158 | 154 160 160 155 158 Slowest Speed 950 | 160 160 320 190 950 Overloaded Moves . | . . . . . Propulsion Burnouts . | . . . . . Robots Hopped . | . . . . . Cave-ins Triggered . | . . . . . Exploration Rate (%) 39 | 4 73 45 68 5 Regions Visited 4 Branch Regions . Pre-discovered Areas . | . . . . . Known Exits Taken . | . . . . . Unknown Exits Taken 4 | 1 1 1 1 . Scrap Searched . | . . . . . Spaces Dug . | . . . . . Terrain Destroyed 128 | . 21 3 102 2 Melee . | . . . . . Projectile 5 | . . 3 . 2 AOE 123 | . 21 . 102 . Terrain Rammed . | . . . . . Walls Destroyed . | . . . . . Machines Disabled . | . . . . . Actions | -11 -10 -9 -8 -7 --------- Run | Yrd Mat Mat Mat Fac Total 2720 | 137 570 756 1041 216 Wait 105 | 6 . . 93 6 Move 2162 | 95 490 616 789 172 Hop . | . . . . . Pick Up 93 | 13 11 34 27 8 Fast Attach 2 | . . 1 1 . Attach 26 | 7 1 7 8 3 Detach 2 | . 1 . 1 . Swap 47 | . 13 11 17 6 Drop 51 | 1 11 15 17 7 Fire 230 | 15 42 71 88 14 Melee . | . . . . . Ram . | . . . . . Kick . | . . . . . Crush 2 | . 1 1 . . Escape Stasis . | . . . . . Rewire . | . . . . . Trap . | . . . . . Miscellaneous . | . . . . . Route ------- -11/Scrapyard -10/Materials (discovered 3 exits: *Mat x2 / [*Min]) -9/Materials -8/Materials (discovered 3 exits: *Fac x3) -7/Factory History --------- Turn | Location | Event 16 | -11/Scrapyard | Discovered new exit (range 16) 216 | -11/Scrapyard | Entered Materials 302 | -10/Materials | Build established: Mutant 314 | -10/Materials | Discovered new exit (range 7) 348 | -10/Materials | Destroyed 7 combat bots 379 | -10/Materials | Discovered new exit (range 12) 1114 | -10/Materials | Discovered new exit (range 13) 1147 | -10/Materials | Entered another Materials area 1147 | -9/Materials | Evolved 2 slots: Propulsion x1, Utility x1 2357 | -9/Materials | Discovered new exit (range 3) 2418 | -9/Materials | Entered another Materials area 2418 | -8/Materials | Evolved 2 slots: Utility x2 2618 | -8/Materials | Repaired Imp. Treads? 2668 | -8/Materials | Repaired Imp. Treads 2703 | -8/Materials | Repaired Med. Armor Plating 2939 | -8/Materials | Discovered new exit (range 15) 2943 | -8/Materials | Garrison activated, responded to threat 3256 | -8/Materials | Garrison activated, responded to threat 3831 | -8/Materials | Discovered new exit (range 5) 3852 | -8/Materials | Build established: Scavenger-Mutant 4008 | -8/Materials | Discovered new exit (range 15) 4015 | -8/Materials | Core integrity fell below 50% 4055 | -8/Materials | Entered Factory 4055 | -7/Factory | Evolved 2 slots: Propulsion x1, Utility x1 4382 | -7/Factory | Core integrity fell below 50% 4395 | -7/Factory | Core integrity fell below 20% 4399 | -7/Factory | Destroyed by G-47 Trooper with Particle Gun Last Messages --------------- Dropped Hpw. Shotgun. Acquired Transmission Jammer. Acquired Gauss Cannon. Dropped Med. Armor Plating. Dropped Kinecellerator. Slug penetrates G-47 Trooper. Assembly Bed disabled. G-47 Trooper knocked back. Critical hit (Burn: +37). Imp. Carbon-fiber Leg destroyed. Critical hit (Burn: +37). Carbon-fiber Leg severed. Imp. Carbon-fiber Leg destroyed. Critical hit (Burn: +37). Nuclear Core severed. VSS Leg severed. Gauss Cannon severed. Gauss Cannon destroyed. Hacking Suite destroyed. G-47 Trooper destroyed. Map ----- +----------------------------------------------------+ | ????????????????# ########"#""#### | | ??????"""""""""?# #?## ! | | ????????????????+ #?# ! !!]%"" " | | ????????????????#+##### #?##%=! %"""" | | ??????????????????????# #??#! [[ """" | | ??????????????????????# #??# """" | | ??????????????????????# #??# """" | | ??????????????????????# #??# """" | | ??????????????????????# #??# " | | ??????????????????????# #??# T | | ???????????""""?""""??# #??# " | | ???????????""""?""""??# #??# | | ???????????""""?""""??# ################ | | ???????????""""?""""??# # ### | | ???????????"""" """"??# # """"""""" + * | | ???????????"""" """"??# # ### | | ?????????# """" """" ?# # """"""""" ## | | ?????????# # # ## | | ?????????# ! # # """"""""" ## | | ?????????# ] + + ## | | ?????????# ! #= # """"""""" ## | | ??????##############??# # ## | | ??????# ########*g # """"""""" ## | | ??????# """ # =g # ### | | ??????# """ # ]%= # #?? | | ??????# """ # @l * ##############?? | | ??????# + #??????????????? | | ??????# """ # #??????????????? | | ??????# """ # ########??????????????? | | ??????# """ # #?????????????????????? | | ??????# # #?????????????????????? | | ??????########## #?????????????????????? | | ???????????????# #?????????????????????? | | ???????????????# #?????????????????????? | | ???????????????# = #?????????????????????? | | ???????????????# == #?????????????????????? | | ???????????????# #?????????????????????? | | ???????????????#######?????????????????????? | | ???????????????????????????????????????????? | | ???????????????????????????????????????????? | | ????""?????????????????????????????????????? | | ????""?????????????????????????????????????? | | ????"T?????????????????????????????????????? | | ????""?????????????????????????????????????? | | ????""?????????????????????????????????????? | | ???????????????????????????????????????????? | | ??????????"""??????????????????????????????? | | ???????????T"??????????????????????????????? | | ??????????"""??????????????????????????????? | | ???????????????????????????????????????????? | +----------------------------------------------------+ Best States ------------- Heat Dissipation 34 Energy Generation 14 Energy Capacity 280 Matter Stores 300 Matter Capacity 300 Sight Range 20 Terrain Scan Range 16 Terrain Scan Density 10 Jamming Range 12 Armor Coverage 225 Utility Shielding 66 Evasion (%) 55 Targeting Accuracy 5 Core Analysis 6 Recoil Reduction 3 Kinecelleration 30 Offensive Hacking 10 Item Schematics ----------------- Imp. Treads | -9/Materials | Scanalyzed Med. Armor Plating | -8/Materials | Scanalyzed Shield Generator | -8/Materials | Scanalyzed Robot Schematics ------------------ None Fabricated ------------ Nothing Alien Tech Used ----------------- None Achievements -------------- Armchair Analyst Challenges ------------ None Game ------ Seed MetaAntimatterJammer Manual? 0 Play Time 01:02:22 Cumulative 6.6 hours Start 2024.04.02 @ 17:15:42 End 2024.04.02 @ 18:17:38 Sessions 1 Manual Loads 0 Difficulty Rogue Special Mode None Game No. 8 Rogue 3 Adventurer 5 Explorer 0 Win Type - Total 0 Types 0/0/0/0/0/0/0/0/0 Lore% 9 Gallery% 14 Achievement% 10 Wizard Run 0 Options --------- Layout 1 ASCII 0 Keyboard 0 Movement Mouse Keybinds 0 Fullscreen 2 Font 24/Smallcaps Map View 50x35 Zoom Use 0% Tactical HUD 0 Map Filters NONE Filters NONE Steam 1 RUN: 753a456d-3c01-487d-b888-ce9d0af88252